fUSD/lending_fUSD_20260427
["ID","MTS","AMOUNT","RATE_DAILY","PERIOD"]
[421198994,1777233047476,-2059.88227622,0.00040272,15]
[421198995,1777233047488,-2059.88227622,0.00040272,15]
[421198996,1777233047499,-2059.88227622,0.00040272,15]
[421198997,1777233047510,-2059.88227622,0.00040272,15]
[421198998,1777233047521,-2059.88227622,0.00040272,15]
[421198999,1777233047532,-2059.88227622,0.00040272,15]
[421199000,1777233047542,-2059.88227622,0.00040272,15]
[421199001,1777233047554,-2059.88227622,0.00040272,15]
[421199002,1777233047564,-2059.88227622,0.00040272,15]
[421199003,1777233047575,-2059.88227622,0.00040272,15]
[421199004,1777233047585,-2059.88227622,0.00040272,15]
[421199005,1777233047595,-2059.88227622,0.00040272,15]
[421199006,1777233047605,-2059.88227622,0.00040272,15]
[421199007,1777233047616,-2059.88227622,0.00040272,15]
[421199008,1777233047627,-2059.88227622,0.00040272,15]
[421199009,1777233047639,-2059.88227622,0.00040272,15]
[421199010,1777233047649,-2059.88227621,0.00040272,15]
[421199011,1777233047659,-2059.88227621,0.00040272,15]
[421199012,1777233047671,-500.0,0.00040272,15]
[421199013,1777233047683,-278.5455886,0.00040272,15]
[421199014,1777233047694,-500.0,0.00040273,15]
[421199015,1777233047709,-500.0,0.00040273,15]
[421199016,1777233047719,-360.48476278,0.00040273,15]
[421199017,1777233047731,-3107.9,0.00040273,15]
[421199018,1777233047742,-500.0,0.00040273,15]
[421199019,1777233047753,-541.43,0.00040273,15]
[421199020,1777233047764,-709.65,0.00040273,15]
[421199021,1777233047775,-500.0,0.00040273,15]
[421199022,1777233047785,-811.08,0.00040273,15]
[421199023,1777233047795,-846.38,0.00040273,15]
[421199024,1777233047806,-500.0,0.00040273,15]
[421199025,1777233047816,-568.42,0.00040273,15]
[421199026,1777233047826,-2471.02,0.00040273,15]
[421199027,1777233047836,-500.0,0.00040273,7]
[421199028,1777233047846,-500.0,0.00040273,15]
[421199029,1777233047857,-500.0,0.00040273,15]
[421199030,1777233047868,-2520.49,0.00040273,15]
[421199031,1777233047877,-508.44,0.00040273,15]
[421199032,1777233047887,-565.14,0.00040273,15]
[421199033,1777233047898,-503.41,0.00040273,15]
[421199034,1777233047908,-831.76,0.00040273,15]
[421199035,1777233047919,-500.0,0.00040273,15]
[421199036,1777233047930,-541.23,0.00040273,15]
[421199037,1777233047941,-500.0,0.00040273,15]
[421199038,1777233047952,-500.0,0.00040273,15]
[421199039,1777233047962,-682.03,0.00040273,15]
[421199040,1777233047972,-500.0,0.00040273,15]
[421199041,1777233047982,-500.0,0.00040273,15]
[421199042,1777233047992,-500.0,0.00040273,15]
[421199043,1777233048002,-500.0,0.00040273,15]
[421199044,1777233048012,-1671.16,0.00040273,15]
[421199045,1777233048022,-1531.96,0.00040273,15]
[421199046,1777233048032,-2225.71,0.00040273,15]
[421199047,1777233048042,-934.68,0.00040273,15]
[421199048,1777233048053,-500.0,0.00040273,15]
[421199049,1777233048063,-500.0,0.00040273,15]
[421199050,1777233048073,-500.0,0.00040273,12]
[421199051,1777233048084,-500.0,0.00040273,15]
[421199052,1777233048097,-1522.47,0.00040273,15]
[421199053,1777233048107,-2473.24,0.00040273,15]
[421199054,1777233048118,-894.3,0.00040273,15]
[421199055,1777233048128,-1358.93,0.00040273,15]
[421199056,1777233048138,-872.26,0.00040273,15]
[421199057,1777233048148,-500.0,0.00040273,15]
[421199058,1777233048157,-1642.91,0.00040273,15]
[421199059,1777233048169,-500.0,0.00040273,15]
[421199060,1777233048181,-1027.29,0.00040273,15]
[421199061,1777233048192,-500.0,0.00040273,15]
[421199062,1777233048203,-447.86068488,0.00040273,15]
[421199063,1777233048214,-1006.0,0.00040273,15]
[421199064,1777233048223,-500.0,0.00040273,15]
[421199065,1777233048234,-801.31,0.00040273,15]
[421199066,1777233048247,-618.46214065,0.00040273,15]
[421199067,1777233048258,-500.0,0.00040273,15]
[421199068,1777233048268,-1100.16,0.00040273,15]
[421199069,1777233048278,-577.1,0.00040273,15]
[421199070,1777233048288,-500.0,0.00040273,15]
[421199071,1777233048298,-500.0,0.00040273,15]
[421199072,1777233048312,-552.71,0.00040273,15]
[421199073,1777233048322,-500.0,0.00040273,15]
[421199074,1777233048333,-500.0,0.00040273,15]
[421199075,1777233048343,-1677.38,0.00040273,15]
[421199076,1777233048354,-1627.8,0.00040273,15]
[421199077,1777233048364,-781.79,0.00040273,15]
[421199078,1777233048375,-1068.12,0.00040273,15]
[421199079,1777233048385,-500.0,0.00040273,15]
[421199080,1777233048395,-1323.09,0.00040273,15]
[421199081,1777233048405,-1437.06,0.00040273,15]
[421199082,1777233048415,-500.0,0.00040273,15]
[421199083,1777233048425,-840.22,0.00040273,15]
[421199084,1777233048435,-500.0,0.00040273,15]
[421199085,1777233048445,-1473.32,0.00040273,15]
[421199086,1777233048455,-500.0,0.00040273,15]
[421199087,1777233048465,-583.15,0.00040273,15]
[421199088,1777233048475,-1035.72,0.00040273,15]
[421199089,1777233048486,-2116.59,0.00040273,15]
[421199090,1777233048497,-500.0,0.00040273,15]
[421199091,1777233048510,-500.0,0.00040273,15]
[421199092,1777233048520,-500.0,0.00040273,15]
[421199093,1777233048531,-500.0,0.00040273,15]
[421199094,1777233048541,-600.87,0.00040273,15]
[421199095,1777233048551,-500.0,0.00040273,15]
[421199096,1777233048562,-500.0,0.00040273,15]
[421199097,1777233048572,-500.0,0.00040273,15]
[421199098,1777233048583,-621.43,0.00040273,15]
[421199099,1777233048595,-1870.33,0.00040273,15]
[421199100,1777233048605,-2364.44,0.00040273,15]
[421199101,1777233048615,-1216.3,0.00040273,15]
[421199102,1777233048626,-842.05,0.00040273,15]
[421199103,1777233048637,-519.44,0.00040273,15]
[421199104,1777233048647,-500.0,0.00040273,15]
[421199105,1777233048658,-540.3,0.00040273,15]
[421199106,1777233048668,-500.0,0.00040273,15]
[421199107,1777233048679,-2232.09,0.00040273,15]
[421199108,1777233048892,-500.0,0.00040273,15]
[421199109,1777233048902,-1908.11,0.00040273,15]
[421199110,1777233048912,-500.0,0.00040273,15]
[421199111,1777233048922,-527.87,0.00040273,15]
[421199112,1777233048932,-500.0,0.00040273,15]
[421199113,1777233048941,-500.0,0.00040273,15]
[421199114,1777233048950,-500.0,0.00040273,15]
[421199115,1777233048959,-2846.84,0.00040273,15]
[421199116,1777233048968,-500.0,0.00040273,15]
[421199117,1777233048977,-670.37,0.00040273,15]
[421199118,1777233048987,-753.07,0.00040273,15]
[421199119,1777233048997,-1838.66,0.00040273,15]
[421199120,1777233049006,-500.0,0.00040273,15]
[421199121,1777233049016,-629.13,0.00040273,15]
[421199122,1777233049025,-1079.95,0.00040273,15]
[421199123,1777233049034,-157.35591583,0.00040273,15]
[421199124,1777233049045,-500.0,0.00040273,15]
[421199125,1777233049057,-738.6,0.00040273,15]
[421199126,1777233049067,-833.92,0.00040273,15]
[421199127,1777233049076,-500.0,0.00040273,15]
[421199128,1777233049086,-1225.64,0.00040273,15]
[421199129,1777233049100,-550.1,0.00040273,15]
[421199130,1777233049111,-1876.72,0.00040273,15]
[421199131,1777233049121,-500.0,0.00040273,15]
[421199132,1777233049133,-1061.98,0.00040273,15]
[421199133,1777233049143,-500.0,0.00040273,15]
[421199134,1777233049153,-500.0,0.00040273,15]
[421199135,1777233049162,-500.0,0.00040273,15]
[421199136,1777233049173,-1723.48,0.00040273,15]
[421199137,1777233049183,-500.0,0.00040273,15]
[421199138,1777233049193,-689.09,0.00040273,15]
[421199139,1777233049202,-500.0,0.00040273,15]
[421199140,1777233049211,-500.0,0.00040273,15]
[421199141,1777233049221,-500.0,0.00040273,15]
[421199142,1777233049231,-648.18,0.00040273,15]
[421199143,1777233049240,-1128.22,0.00040273,15]
[421199144,1777233049249,-972.03,0.00040273,15]
[421199145,1777233049259,-500.0,0.00040273,15]
[421199146,1777233049268,-1122.6,0.00040273,15]
[421199147,1777233049277,-500.0,0.00040273,15]
[421199148,1777233049287,-500.0,0.00040273,15]
[421199149,1777233049296,-1543.14,0.00040273,15]
[421199150,1777233049305,-500.0,0.00040273,15]
[421199151,1777233049314,-500.0,0.00040273,15]
[421199152,1777233049324,-500.0,0.00040273,15]
[421199153,1777233049333,-500.0,0.00040273,15]
[421199154,1777233049344,-1673.98,0.00040273,15]
[421199155,1777233049354,-206.85345985,0.00040273,15]
[421199156,1777233049367,-1019.21,0.00040273,15]
[421199157,1777233049377,-500.0,0.00040273,15]
[421199158,1777233049386,-693.7,0.00040273,15]
[421199159,1777233049396,-616.37,0.00040273,15]
[421199160,1777233049407,-500.0,0.00040273,15]
[421199161,1777233049418,-500.0,0.00040273,15]
[421199162,1777233049428,-500.0,0.00040273,15]
[421199163,1777233049437,-1077.19,0.00040273,15]
[421199164,1777233049447,-500.0,0.00040273,15]
[421199165,1777233049456,-1201.83,0.00040273,15]
[421199166,1777233049465,-178.23255496,0.00040273,15]
[421199167,1777233049474,-500.0,0.00040273,15]
[421199168,1777233049483,-500.0,0.00040273,15]
[421199169,1777233049493,-882.98,0.00040273,5]
[421199170,1777233049502,-500.0,0.00040273,15]
[421199171,1777233049511,-571.13,0.00040273,15]
[421199172,1777233049520,-532.65,0.00040273,15]
[421199173,1777233049530,-532.67,0.00040273,15]
[421199174,1777233049539,-552.39,0.00040273,15]
[421199175,1777233049548,-1834.85,0.00040273,15]
[421199176,1777233049557,-892.83,0.00040273,15]
[421199177,1777233049568,-1534.49,0.00040273,15]
[421199178,1777233049576,-972.12,0.00040273,15]
[421199179,1777233049586,-500.0,0.00040273,15]
[421199180,1777233049595,-551.58,0.00040273,15]
[421199181,1777233049604,-1750.29,0.00040273,15]
[421199182,1777233049613,-937.9,0.00040273,7]
[421199183,1777233049623,-500.0,0.00040273,15]
[421199184,1777233049632,-500.0,0.00040273,15]
[421199185,1777233049641,-993.58,0.00040273,15]
[421199186,1777233049650,-500.0,0.00040273,15]
[421199187,1777233049659,-530.46,0.00040273,15]
[421199188,1777233049668,-520.62,0.00040273,15]
[421199189,1777233049678,-1995.81,0.00040273,15]
[421199190,1777233049688,-525.77,0.00040273,15]
[421199191,1777233049698,-1952.43,0.00040273,15]
[421199192,1777233049707,-518.57,0.00040273,15]
[421199193,1777233049717,-500.0,0.00040273,15]
[421199194,1777233049726,-580.81,0.00040273,15]
[421199195,1777233049735,-500.0,0.00040273,15]
[421199196,1777233049744,-500.0,0.00040273,15]
[421199197,1777233049754,-992.01,0.00040273,15]
[421199198,1777233049763,-2029.26,0.00040273,15]
[421199199,1777233049773,-500.0,0.00040273,15]
[421199200,1777233049782,-936.75,0.00040273,15]
[421199201,1777233049792,-708.16,0.00040273,15]
[421199202,1777233049801,-1285.52,0.00040273,15]
[421199203,1777233049811,-1694.22,0.00040273,15]
[421199204,1777233049830,-500.0,0.00040273,15]
[421199205,1777233049841,-505.88,0.00040273,15]
[421199206,1777233049850,-1154.35,0.00040273,15]
[421199207,1777233049860,-595.92,0.00040273,15]
[421199208,1777233049870,-484.81258614,0.00040273,15]
[421199209,1777233049879,-500.0,0.00040273,15]
[421199210,1777233049888,-1069.75,0.00040273,15]
[421199211,1777233049897,-754.46,0.00040273,15]
[421199212,1777233049907,-667.16,0.00040273,15]
[421199213,1777233049916,-945.6,0.00040273,15]
[421199214,1777233049925,-500.0,0.00040273,15]
[421199215,1777233049935,-696.96,0.00040273,15]
[421199216,1777233049944,-676.72,0.00040273,15]
[421199217,1777233049953,-821.49,0.00040273,15]
[421199218,1777233049963,-991.13,0.00040273,15]
[421199219,1777233049972,-562.6,0.00040273,15]
[421199220,1777233049982,-534.38,0.00040273,15]
[421199221,1777233049992,-880.94,0.00040273,15]
[421199222,1777233050002,-500.0,0.00040273,15]
[421199223,1777233050011,-559.83,0.00040273,15]
[421199224,1777233050023,-501.88448956,0.00040273,15]
[421199225,1777233050032,-500.0,0.00040273,15]
[421199226,1777233050043,-1922.83,0.00040273,15]
[421199227,1777233050053,-1246.97,0.00040273,15]
[421199228,1777233050062,-500.0,0.00040273,15]
[421199229,1777233050072,-500.0,0.00040273,15]
[421199230,1777233050082,-1103.63,0.00040273,15]
[421199231,1777233050091,-270.34918973,0.00040273,15]
[421199232,1777233050100,-1473.44,0.00040273,15]
[421199233,1777233050110,-1007.38,0.00040273,15]
[421199234,1777233050119,-500.0,0.00040273,15]
[421199235,1777233050129,-1056.97,0.00040273,15]
[421199236,1777233050138,-1365.11,0.00040273,15]
[421199237,1777233050149,-500.0,0.00040273,15]
[421199238,1777233050158,-500.0,0.00040273,15]
[421199239,1777233050167,-500.0,0.00040273,15]
[421199240,1777233050177,-500.0,0.00040273,15]
[421199241,1777233050186,-1442.35,0.00040273,15]
[421199242,1777233050196,-500.0,0.00040273,15]
[421199243,1777233050205,-630.59,0.00040273,15]
[421199244,1777233050215,-1048.26,0.00040273,15]
[421199245,1777233050224,-500.0,0.00040273,15]
[421199246,1777233050233,-490.88952475,0.00040273,15]
[421199247,1777233050243,-626.08,0.00040273,15]
[421199248,1777233050253,-1716.3,0.00040273,15]
[421199249,1777233050262,-500.0,0.00040273,15]
[421199250,1777233050271,-3539.51,0.00040273,15]
[421199251,1777233050280,-500.0,0.00040273,2]
[421199252,1777233050290,-500.0,0.00040273,15]
[421199253,1777233050299,-787.69,0.00040273,15]
[421199254,1777233050309,-1238.2,0.00040273,15]
[421199255,1777233050318,-500.0,0.00040273,15]
[421199256,1777233050328,-1086.18,0.00040273,15]
[421199257,1777233050338,-500.0,0.00040273,15]
[421199258,1777233050347,-699.93,0.00040273,15]
[421199259,1777233050357,-500.0,0.00040273,15]
[421199260,1777233050366,-500.0,0.00040273,15]
[421199261,1777233050376,-559.73,0.00040273,15]
[421199262,1777233050385,-867.24,0.00040273,15]
[421199263,1777233050394,-870.64,0.00040273,15]
[421199264,1777233050403,-685.35,0.00040273,15]
[421199265,1777233050412,-500.0,0.00040273,15]
[421199266,1777233050421,-1036.89,0.00040273,15]
[421199267,1777233050430,-2070.79,0.00040273,15]
[421199268,1777233050444,-500.0,0.00040273,15]
[421199269,1777233050454,-500.0,0.00040273,15]
[421199270,1777233050464,-500.0,0.00040273,15]
[421199271,1777233050473,-3334.91,0.00040273,15]
[421199272,1777233050483,-5476.34,0.00040273,15]
[421199273,1777233050493,-500.0,0.00040273,15]
[421199274,1777233050502,-500.0,0.00040273,15]
[421199275,1777233050512,-1322.23,0.00040273,15]
[421199276,1777233050521,-1216.19,0.00040273,14]
[421199277,1777233050530,-500.0,0.00040273,15]
[421199278,1777233050540,-500.0,0.00040273,15]
[421199279,1777233050550,-1389.25,0.00040273,15]
[421199280,1777233050559,-1720.57,0.00040273,15]
[421199281,1777233050569,-500.0,0.00040273,15]
[421199282,1777233050578,-749.96,0.00040273,15]
[421199283,1777233050588,-1262.11,0.00040273,15]
[421199284,1777233050597,-948.11,0.00040273,15]
[421199285,1777233050606,-2892.54,0.00040273,15]
[421199286,1777233050615,-538.16,0.00040273,15]
[421199287,1777233050625,-500.0,0.00040273,15]
[421199288,1777233050634,-743.03,0.00040273,15]
[421199289,1777233050643,-500.0,0.00040273,15]
[421199290,1777233050653,-371.46636658,0.00040273,15]
[421199291,1777233050663,-1861.14,0.00040273,15]
[421199292,1777233050673,-500.0,0.00040273,15]
[421199293,1777233050684,-500.0,0.00040273,15]
[421199294,1777233050695,-500.0,0.00040273,15]
[421199295,1777233050705,-853.77,0.00040273,15]
[421199296,1777233050715,-1169.93,0.00040273,15]
[421199297,1777233050727,-944.13,0.00040273,15]
[421199298,1777233050737,-500.0,0.00040273,15]
[421199299,1777233050747,-1245.88,0.00040273,15]
[421199300,1777233050758,-500.0,0.00040273,15]
[421199301,1777233050768,-155.20839514,0.00040273,15]
[421199302,1777233050777,-500.0,0.00040273,15]
[421199303,1777233050787,-1133.82,0.00040273,15]
[421199304,1777233050797,-4842.51,0.00040273,15]
[421199305,1777233050806,-250.56317483,0.00040273,15]
[421199306,1777233050815,-500.0,0.00040273,15]
[421199307,1777233050825,-500.0,0.00040273,15]
[421199308,1777233050835,-500.0,0.00040273,15]
[421199309,1777233050849,-722.28,0.00040273,15]
[421199310,1777233050859,-1049.32,0.00040273,15]
[421199311,1777233050868,-1471.49,0.00040273,15]
[421199312,1777233050879,-790.34,0.00040273,15]
[421199313,1777233050889,-1919.59,0.00040273,15]
[421199314,1777233050900,-500.0,0.00040273,15]
[421199315,1777233050910,-1831.1,0.00040273,15]
[421199316,1777233050921,-500.0,0.00040273,15]
[421199317,1777233050931,-500.0,0.00040273,15]
[421199318,1777233050941,-500.0,0.00040273,15]
[421199319,1777233050950,-831.8,0.00040273,15]
[421199320,1777233050961,-577.56,0.00040273,15]
[421199321,1777233050972,-567.11933975,0.00040273,15]
[421199322,1777233050982,-1054.82,0.00040273,15]
[421199323,1777233050993,-1794.7,0.00040273,15]
[421199324,1777233051003,-500.0,0.00040273,15]
[421199325,1777233051013,-500.0,0.00040273,15]
[421199326,1777233051024,-500.0,0.00040273,15]
[421199327,1777233051034,-500.0,0.00040273,15]
[421199328,1777233051044,-500.0,0.00040273,15]
[421199329,1777233051054,-500.0,0.00040273,15]
[421199330,1777233051064,-1628.58,0.00040273,15]
[421199331,1777233051077,-530.7473949,0.00040273,15]
[421199332,1777233051086,-500.0,0.00040273,15]
[421199333,1777233051095,-500.0,0.00040273,15]
[421199334,1777233051105,-793.17,0.00040273,15]
[421199335,1777233051115,-500.0,0.00040273,15]
[421199336,1777233051124,-500.0,0.00040273,15]
[421199337,1777233051133,-500.0,0.00040273,15]
[421199338,1777233051143,-2337.63,0.00040273,15]
[421199339,1777233051153,-1346.97,0.00040273,15]
[421199340,1777233051162,-500.0,0.00040273,15]
[421199341,1777233051171,-1331.18,0.00040273,15]
[421199342,1777233051181,-484.73249333,0.00040273,15]
[421199343,1777233051191,-500.0,0.00040273,15]
[421199344,1777233051201,-500.0,0.00040273,15]
[421199345,1777233051212,-2102.69,0.00040273,15]
[421199346,1777233051223,-579.9,0.00040273,15]
[421199347,1777233051233,-783.32,0.00040273,15]
[421199348,1777233051244,-4166.68,0.00040273,2]
[421199349,1777233051253,-566.87,0.00040273,15]
[421199350,1777233051263,-500.0,0.00040273,15]
[421199351,1777233051272,-500.0,0.00040273,15]
[421199352,1777233051281,-1884.87,0.00040273,15]
[421199353,1777233051291,-500.0,0.00040273,15]
[421199354,1777233051300,-500.0,0.00040273,15]
[421199355,1777233051310,-1199.52,0.00040273,15]
[421199356,1777233051319,-808.9,0.00040273,15]
[421199357,1777233051328,-337.68792392,0.00040273,15]
[421199358,1777233051338,-500.0,0.00040273,15]
[421199359,1777233051347,-12545.47,0.00040273,15]
[421199360,1777233051357,-2092.53,0.00040273,15]
[421199361,1777233051367,-1346.26,0.00040273,15]
[421199362,1777233051376,-274.42261969,0.00040273,15]
[421199363,1777233051386,-500.0,0.00040273,15]
[421199364,1777233051400,-988.63,0.00040273,15]
[421199365,1777233051411,-791.54,0.00040273,15]
[421199366,1777233051422,-1460.02,0.00040273,15]
[421199367,1777233051432,-221.646316,0.00040273,15]
[421199368,1777233051442,-477.47464604,0.00040273,15]
[421199369,1777233051452,-2396.63,0.00040273,15]
[421199370,1777233051461,-16627.45,0.00040273,11]
[421199371,1777233051472,-1750.67,0.00040273,15]
[421199372,1777233051483,-704.82,0.00040273,15]
[421199373,1777233051495,-18480.37,0.00040273,15]
[421199374,1777233051505,-838.62,0.00040273,15]
[421199375,1777233051517,-643.71,0.00040273,15]
[421199376,1777233051528,-4214.41,0.00040273,15]
[421199377,1777233051538,-1043.57,0.00040273,15]
[421199378,1777233051548,-1128.82,0.00040273,15]
[421199379,1777233051558,-500.0,0.00040273,15]
[421199380,1777233051567,-500.0,0.00040273,15]
[421199381,1777233051578,-1350.11,0.00040273,15]
[421199382,1777233051588,-1122.83,0.00040273,15]
[421199383,1777233051599,-500.0,0.00040273,15]
[421199384,1777233051611,-826.33,0.00040273,15]
[421199385,1777233051622,-266.51302436,0.00040273,15]
[421199386,1777233051632,-2819.67,0.00040273,15]
[421199387,1777233051643,-500.0,0.00040273,15]
[421199388,1777233051654,-500.0,0.00040273,15]
[421199389,1777233051664,-936.61,0.00040273,15]
[421199390,1777233051674,-2084.4,0.00040273,15]
[421199391,1777233051684,-500.0,0.00040273,15]
[421199392,1777233051694,-642.62878426,0.00040273,15]
[421199393,1777233051704,-500.0,0.00040273,15]
[421199394,1777233051714,-500.0,0.00040273,15]
[421199395,1777233051724,-500.0,0.00040273,15]
[421199396,1777233051733,-500.0,0.00040273,15]
[421199397,1777233051742,-1259.32,0.00040273,15]
[421199398,1777233051752,-620.77,0.00040273,15]
[421199399,1777233051762,-509.21,0.00040273,15]
[421199400,1777233051771,-2495.88,0.00040273,15]
[421199401,1777233051781,-800.28,0.00040273,15]
[421199402,1777233051790,-547.23626617,0.00040273,15]
[421199403,1777233051800,-500.0,0.00040273,15]
[421199404,1777233051810,-357.66912195,0.00040273,15]
[421199405,1777233051819,-4180.34,0.00040273,15]
[421199406,1777233051829,-1435.38,0.00040273,15]
[421199407,1777233051839,-500.0,0.00040273,15]
[421199408,1777233051848,-500.0,0.00040273,15]
[421199409,1777233051859,-1138.59,0.00040273,15]
[421199410,1777233051868,-3856.9,0.00040273,15]
[421199411,1777233051877,-1146.85,0.00040273,15]
[421199412,1777233051887,-500.0,0.00040273,15]
[421199413,1777233051898,-500.0,0.00040273,15]
[421199414,1777233051909,-500.0,0.00040273,15]
[421199415,1777233051920,-500.0,0.00040273,15]
[421199416,1777233051929,-500.0,0.00040273,15]
[421199417,1777233051939,-3436.63,0.00040273,15]
[421199418,1777233051949,-500.0,0.00040273,15]
[421199419,1777233051959,-588.18526805,0.00040273,15]
[421199420,1777233051969,-951.98,0.00040273,120]
[421199421,1777233051979,-218.51,0.00040274,120]
[421199422,1777233051988,-250000.0,0.000403,30]
[421199423,1777233051998,-163.72,0.000403,30]
[421199424,1777233052007,-5516.11,0.000403,7]
[421199425,1777233052017,-277.64012,0.000403,30]
[421199426,1777233052026,-767.12175351,0.00040301,120]
[421199427,1777233052036,-202.55216919,0.00040301,120]
[421199428,1777233052046,-198.30715256,0.00040301,120]
[421199429,1777233052055,-208.31133897,0.00040301,120]
[421199430,1777233052066,-227.87252914,0.00040301,120]
[421199431,1777233052076,-1997.67,0.00040312,120]
[421199432,1777233052087,-1568.285,0.000404,30]
[421199433,1777233052097,-1568.285,0.000404,30]
[421199434,1777233052108,-1568.28,0.000404,30]
[421199435,1777233052117,-363.5495,0.000404,30]
[421199436,1777233052128,-5516.11,0.000404,7]
[421199437,1777233052138,-2051.80806001,0.00040411,10]
[421199438,1777233052148,-1915.87282729,0.00040411,10]
[421199439,1777233052158,-3388.0,0.00040411,10]
[421199440,1777233052168,-3388.0,0.00040411,10]
[421199441,1777233052178,-1168.82995427,0.00040411,10]
[421199442,1777233052187,-1997.67,0.00040412,120]
[421199443,1777233052197,-744.27,0.00040419,120]
[421199444,1777233052207,-16663.36,0.00040419,120]
[421199445,1777233052217,-3218.91885884,0.00040448,2]
[421199446,1777233052227,-352.45343224,0.00040448,2]
[421199447,1777233052237,-694.81,0.00040464,120]
[421199448,1777233052248,-2000.0,0.00040478,120]
[421199449,1777233052258,-250.0,0.00040493,90]
[421199450,1777233052271,-1500.0,0.000405,120]
[421199451,1777233052280,-220.7,0.000405,120]
[421199452,1777233052290,-5000.0,0.000405,90]
[421199453,1777233052300,-5000.0,0.000405,90]
[421199454,1777233052310,-5000.0,0.000405,90]
[421199455,1777233052321,-5000.0,0.000405,90]
[421199456,1777233052331,-5000.0,0.000405,90]
[421199457,1777233052340,-5000.0,0.000405,90]
[421199458,1777233052350,-5000.0,0.000405,90]
[421199459,1777233052359,-5000.0,0.000405,90]
[421199460,1777233052369,-5000.0,0.000405,90]
[421199461,1777233052379,-5000.0,0.000405,90]
[421199462,1777233052389,-5000.0,0.000405,90]
[421199463,1777233052399,-5000.0,0.000405,90]
[421199464,1777233052410,-5000.0,0.000405,90]
[421199465,1777233052420,-5000.0,0.000405,90]
[421199466,1777233052429,-1007.14041846,0.000405,120]
[421199467,1777233052441,-14000.0,0.000405,120]
[421199468,1777233052450,-1997.67,0.00040512,120]
[421199469,1777233052461,-150.0,0.0004052,30]
[421199470,1777233052471,-1514.10649799,0.0004052,30]
[421199471,1777233052482,-24127.51903272,0.00040531,7]
[421199472,1777233052492,-157.18181311,0.00040546,3]
[421199473,1777233052502,-500.0,0.00040547,15]
[421199474,1777233052512,-500.0,0.00040547,15]
[421199475,1777233052521,-3107.9,0.00040547,15]
[421199476,1777233052531,-500.0,0.00040547,15]
[421199477,1777233052542,-541.43,0.00040547,15]
[421199478,1777233052553,-709.65,0.00040547,15]
[421199479,1777233052563,-500.0,0.00040547,15]
[421199480,1777233052573,-811.08,0.00040547,15]
[421199481,1777233052583,-846.38,0.00040547,15]
[421199482,1777233052592,-500.0,0.00040547,15]
[421199483,1777233052603,-568.42,0.00040547,15]
[421199484,1777233052613,-2471.02,0.00040547,15]
[421199485,1777233052625,-500.0,0.00040547,7]
[421199486,1777233052634,-500.0,0.00040547,15]
[421199487,1777233052647,-500.0,0.00040547,15]
[421199488,1777233052657,-2520.49,0.00040547,15]
[421199489,1777233052667,-508.44,0.00040547,15]
[421199490,1777233052677,-565.14,0.00040547,15]
[421199491,1777233052686,-503.41,0.00040547,15]
[421199492,1777233052696,-831.76,0.00040547,15]
[421199493,1777233052706,-500.0,0.00040547,15]